[Event "Mitropa Cup Open 2019"]
[Site "Radenci"]
[Date "2019.05.31"]
[Round "5.8"]
[White "Miesbauer, Jan"]
[Black "Eugene, Floryan"]
[Result "1-0"]
[ECO "C60"]
[WhiteElo "2407"]
[BlackElo "2303"]
[Annotator "ChessBase"]
[PlyCount "113"]
[EventDate "2019.05.27"]
[EventType "team-tourn"]
[EventCountry "SLO"]
[SourceTitle "playchess.com"]
[Source "ChessBase"]
[SourceQuality "1"]
[WhiteTeam "Czech Republic"]
[BlackTeam "France"]
[WhiteTeamCountry "CZE"]
[BlackTeamCountry "FRA"]
[TimeControl "40/5400+30:1800+30"]

1. e4 {[%emt 0:00:00]} e5 {[%emt 0:00:00]} 2. Nf3 {[%emt 0:00:00]} Nc6 {[%emt 0:00:00]} 3. Bb5 {[%emt 0:00:00]} Nge7 {[%emt 0:00:41]} 4. c3 {[%emt 0:00:38]} g6 {[%emt 0:00:54]} 5. O-O {[%emt 0:00:38]} Bg7 {[%emt 0:00:09]} 6. d4 {[%emt 0:01:04]} exd4 {[%emt 0:00:30]} 7. cxd4 {[%emt 0:00:07]} d5 {[%emt 0:00:05]} 8. exd5 {[%emt 0:00:33]} Nxd5 {[%emt 0:00:14]} 9. Bg5 {[%emt 0:01:06]} Qd6 {[%emt 0:00:37]} 10. Re1+ {[%emt 0:00:27]} Be6 {[%emt 0:00:10]} 11. Nbd2 {[%emt 0:02:19]} O-O {[%emt 0:00:23]} 12. Ne4 {[%emt 0:02:00]} Qb4 {[%emt 0:00:26]} 13. Bxc6 {[%emt 0:01:05]} bxc6 {[%emt 0:00:03]} 14. Qd2 {[%emt 0:00:39]} Rab8 {[%emt 0:20:54]} 15. b3 {[%emt 0:09:06]} Qa3 {[%emt 0:11:49]} 16. Bh6 {[%emt 0:02:54]} Rfe8 {[%emt 0:04:47]} 17. Bxg7 {[%emt 0:01:26]} Kxg7 {[%emt 0:00:03]} 18. Ne5 {[%emt 0:04:00]} Nb4 {[%emt 0:10:41]} 19. Nc5 {[%emt 0:07:34]} h5 {[%emt 0:20:38]} 20. Qf4 {[%emt 0:10:21]} Bf5 {[%emt 0:04:09]} 21. Nc4 {[%emt 0:12:17]} Rxe1+ {[%emt 0:04:22]} 22. Rxe1 {[%emt 0:00:06]} Qxa2 {[%emt 0:00:02]} 23. Qxc7 {[%emt 0:00:44]} Re8 {[%emt 0:03:24]} 24. Ne5 {[%emt 0:01:32]} Rf8 {[%emt 0:00:28]} 25. h3 {[%emt 0:03:55]} Nc2 {[%emt 0:02:18]} 26. Rd1 {[%emt 0:06:09]} Nxd4 {[%emt 0:05:13]} 27. Nxg6 {[%emt 0:20:38]} Ne2+ {[%emt 0:04:19]} 28. Kf1 {[%emt 0:00:06]} Qc2 {[%emt 0:02:11]} 29. Re1 {[%emt 0:00:49]} Kxg6 {[%emt 0:04:01]} 30. Qd6+ {[%emt 0:00:39]} Kg7 {[%emt 0:00:04]} 31. Rxe2 {[%emt 0:00:45]} Qc1+ {[%emt 0:00:41]} 32. Re1 {[%emt 0:00:06]} Qg5 {[%emt 0:01:03]} 33. Qe5+ {[%emt 0:05:19]} Qf6 {[%emt 0:00:39]} 34. Qxf6+ {[%emt 0:04:40]} Kxf6 {[%emt 0:00:03]} 35. Ra1 {[%emt 0:00:21]} Ra8 {[%emt 0:00:33]} 36. Ra6 {[%emt 0:00:26]} Ke5 {[%emt 0:00:50]} 37. Rxc6 {[%emt 0:00:31]} Kd5 {[%emt 0:00:31]} 38. Rc7 {[%emt 0:01:01]} Bc2 {[%emt 0:00:28]} 39. b4 {[%emt 0:00:27]} a5 {[%emt 0:00:21]} 40. bxa5 {[%emt 0:00:00]} Kd6 {[%emt 0:00:00]} 41. Rxf7 {[%emt 0:03:02]} Kxc5 {[%emt 0:02:50]} 42. Rc7+ {[%emt 0:00:44]} Kd4 {[%emt 0:02:02]} 43. Rxc2 {[%emt 0:00:07]} Rxa5 {[%emt 0:00:01]} 44. Kg1 {[%emt 0:01:30]} Ke4 {[%emt 0:00:22]} 45. Kh2 {[%emt 0:00:28]} Kf4 {[%emt 0:00:18]} 46. Rc4+ {[%emt 0:00:16]} Kg5 {[%emt 0:00:03]} 47. h4+ {[%emt 0:00:48]} Kf5 {[%emt 0:00:26]} 48. Kg3 {[%emt 0:01:36]} Ra3+ {[%emt 0:00:10]} 49. f3 {[%emt 0:00:05]} Ra5 {[%emt 0:00:02]} 50. Rc8 {[%emt 0:00:16]} Ra7 {[%emt 0:00:54]} 51. Rg8 {[%emt 0:01:24]} Rh7 {[%emt 0:00:08]} 52. Rg5+ {[%emt 0:00:08]} Kf6 {[%emt 0:00:00]} 53. Kh3 {[%emt 0:00:18]} Rh8 {[%emt 0:00:05]} 54. g4 {[%emt 0:00:41]} hxg4+ {[%emt 0:00:07]} 55. fxg4 {[%emt 0:00:05]} Ra8 {[%emt 0:00:05]} 56. Rf5+ {[%emt 0:00:06]} Kg6 {[%emt 0:00:07]} 57. h5+ {[%emt 0:00:05] Kf6} 1-0

[Event "Mitropa Cup Open 2019"]
[Site "Radenci"]
[Date "2019.05.31"]
[Round "5.11"]
[White "Pechac, Jergus"]
[Black "Lagunow, Raphael"]
[Result "1/2-1/2"]
[ECO "D44"]
[WhiteElo "2461"]
[BlackElo "2420"]
[Annotator "ChessBase"]
[PlyCount "116"]
[EventDate "2019.05.27"]
[EventType "team-tourn"]
[EventCountry "SLO"]
[SourceTitle "playchess.com"]
[Source "ChessBase"]
[SourceQuality "1"]
[WhiteTeam "Slovakia"]
[BlackTeam "Germany"]
[WhiteTeamCountry "SVK"]
[BlackTeamCountry "GER"]
[TimeControl "40/5400+30:1800+30"]

1. d4 {[%emt 0:02:31]} d5 {[%emt 0:00:00]} 2. c4 {[%emt 0:00:09]} c6 {[%emt 0:00:00]} 3. Nf3 {[%emt 0:00:08]} Nf6 {[%emt 0:00:00]} 4. Nc3 {[%emt 0:00:06]} e6 {[%emt 0:00:08]} 5. Bg5 {[%emt 0:00:45]} dxc4 {[%emt 0:00:08]} 6. e4 {[%emt 0:00:18]} b5 {[%emt 0:00:07]} 7. e5 {[%emt 0:00:04]} h6 {[%emt 0:00:21]} 8. Bh4 {[%emt 0:00:03]} g5 {[%emt 0:00:09]} 9. Nxg5 {[%emt 0:00:05]} hxg5 {[%emt 0:00:23]} 10. Bxg5 {[%emt 0:00:04]} Nbd7 {[%emt 0:00:12]} 11. g3 {[%emt 0:00:18]} Bb7 {[%emt 0:03:02]} 12. Bg2 {[%emt 0:00:06]} Qb6 {[%emt 0:00:44]} 13. exf6 {[%emt 0:00:25]} c5 {[%emt 0:00:44]} 14. d5 {[%emt 0:00:05]} O-O-O {[%emt 0:00:05]} 15. O-O {[%emt 0:00:04]} b4 {[%emt 0:00:50]} 16. Na4 {[%emt 0:00:23]} Qa6 {[%emt 0:01:45]} 17. a3 {[%emt 0:00:06]} Bxd5 {[%emt 0:01:30]} 18. Bxd5 {[%emt 0:02:48]} Ne5 {[%emt 0:00:15]} 19. Nxc5 {[%emt 0:00:19]} Bxc5 {[%emt 0:01:16]} 20. Qe2 {[%emt 0:00:17]} exd5 {[%emt 0:54:27]} 21. Qxe5 {[%emt 0:00:07]} b3 {[%emt 0:01:48]} 22. Rae1 {[%emt 0:00:06]} Qd6 {[%emt 0:02:13]} 23. Qc3 {[%emt 0:02:05]} Qd7 {[%emt 0:12:17]} 24. h4 {[%emt 0:00:57]} Qc6 {[%emt 0:02:56]} 25. Re7 {[%emt 0:00:56]} Bxe7 {[%emt 0:03:13]} 26. fxe7 {[%emt 0:00:13]} Rde8 {[%emt 0:00:12]} 27. Re1 {[%emt 0:00:30]} Rhg8 {[%emt 0:00:59]} 28. Qa5 {[%emt 0:20:34]} Rg6 {[%emt 0:03:39]} 29. Qxa7 {[%emt 0:03:46]} Re6 {[%emt 0:00:17]} 30. Rxe6 {[%emt 0:04:21]} fxe6 {[%emt 0:00:02]} 31. Bf6 {[%emt 0:00:49]} Qc7 {[%emt 0:06:08]} 32. Qxc7+ {[%emt 0:05:04]} Kxc7 {[%emt 0:00:01]} 33. h5 {[%emt 0:00:09]} d4 {[%emt 0:01:42]} 34. Bxd4 {[%emt 0:05:58]} Rxe7 {[%emt 0:00:02]} 35. Be5+ {[%emt 0:07:04]} Kc6 {[%emt 0:00:21]} 36. g4 {[%emt 0:02:21]} Kd5 {[%emt 0:00:32]} 37. f4 {[%emt 0:00:47]} Rh7 {[%emt 0:01:39]} 38. Kf2 {[%emt 0:01:13]} Ke4 {[%emt 0:00:16]} 39. Kg3 {[%emt 0:01:24]} Rd7 {[%emt 0:01:25]} 40. h6 {[%emt 0:00:00]} Rd3+ {[%emt 0:00:00]} 41. Kg2 {[%emt 0:10:57]} Rd2+ {[%emt 0:06:58]} 42. Kg1 {[%emt 0:01:34]} Rd1+ {[%emt 0:01:10]} 43. Kf2 {[%emt 0:00:41]} Rd2+ {[%emt 0:01:00]} 44. Kf1 {[%emt 0:06:13]} Kf3 {[%emt 0:08:38]} 45. Ke1 {[%emt 0:00:20]} Re2+ {[%emt 0:01:13]} 46. Kd1 {[%emt 0:05:19]} Rh2 {[%emt 0:00:39]} 47. h7 {[%emt 0:00:28]} Rxh7 {[%emt 0:03:09]} 48. Kd2 {[%emt 0:00:06]} Rh2+ {[%emt 0:11:35]} 49. Kc3 {[%emt 0:06:58]} Rc2+ {[%emt 0:00:06]} 50. Kb4 {[%emt 0:00:05]} Kxg4 {[%emt 0:00:50]} 51. a4 {[%emt 0:00:08]} c3 {[%emt 0:01:43]} 52. Kxb3 {[%emt 0:01:57]} Rxb2+ {[%emt 0:00:37]} 53. Kxc3 {[%emt 0:00:04]} Rb1 {[%emt 0:00:28]} 54. Kc4 {[%emt 0:01:20]} Rc1+ {[%emt 0:01:11]} 55. Kb5 {[%emt 0:09:32]} Rb1+ {[%emt 0:00:14]} 56. Kc6 {[%emt 0:00:16]} Rc1+ {[%emt 0:00:35]} 57. Kb5 {[%emt 0:00:31]} Rb1+ {[%emt 0:00:04]} 58. Kc6 {[%emt 0:00:04]} Rc1+ {[%emt 0:00:04]} 1/2-1/2

[Event "Mitropa Cup Open 2019"]
[Site "Radenci"]
[Date "2019.05.31"]
[Round "5.12"]
[White "Schmidek, Emil"]
[Black "Sahidi, Samir"]
[Result "1/2-1/2"]
[ECO "B42"]
[WhiteElo "2396"]
[BlackElo "2400"]
[Annotator "ChessBase"]
[PlyCount "114"]
[EventDate "2019.05.27"]
[EventType "team-tourn"]
[EventCountry "SLO"]
[SourceTitle "playchess.com"]
[Source "ChessBase"]
[SourceQuality "1"]
[WhiteTeam "Germany"]
[BlackTeam "Slovakia"]
[WhiteTeamCountry "GER"]
[BlackTeamCountry "SVK"]
[TimeControl "40/5400+30:1800+30"]

1. e4 {[%emt 0:00:00]} c5 {[%emt 0:00:00]} 2. Nf3 {[%emt 0:00:00]} e6 {[%emt 0:00:27]} 3. d4 {[%emt 0:00:00]} cxd4 {[%emt 0:00:05]} 4. Nxd4 {[%emt 0:00:00]} a6 {[%emt 0:00:23]} 5. Bd3 {[%emt 0:00:00]} Nc6 {[%emt 0:00:23]} 6. Nb3 {[%emt 0:00:05]} Nf6 {[%emt 0:00:50]} 7. Qe2 {[%emt 0:01:36]} Nb4 {[%emt 0:01:20]} 8. Nc3 {[%emt 0:02:32]} Nxd3+ {[%emt 0:00:40]} 9. cxd3 {[%emt 0:00:25]} Be7 {[%emt 0:00:30]} 10. e5 {[%emt 0:04:22]} Nd5 {[%emt 0:00:58]} 11. Nxd5 {[%emt 0:05:04]} exd5 {[%emt 0:00:04]} 12. Qg4 {[%emt 0:00:35]} Bf8 {[%emt 0:00:21]} 13. Qd4 {[%emt 0:10:42]} d6 {[%emt 0:00:35]} 14. O-O {[%emt 0:05:25]} Be6 {[%emt 0:00:44]} 15. Bf4 {[%emt 0:05:25]} Be7 {[%emt 0:01:39]} 16. exd6 {[%emt 0:01:08]} Bf6 {[%emt 0:00:05]} 17. Be5 {[%emt 0:00:07]} Bxe5 {[%emt 0:00:16]} 18. Qxe5 {[%emt 0:00:07]} O-O {[%emt 0:00:03]} 19. Rac1 {[%emt 0:15:24]} Qb6 {[%emt 0:00:30]} 20. Rc7 {[%emt 0:03:06]} Rad8 {[%emt 0:00:50]} 21. Rfc1 {[%emt 0:02:39]} Rxd6 {[%emt 0:13:19]} 22. Rxb7 {[%emt 0:02:04]} Qxb7 {[%emt 0:00:27]} 23. Qxd6 {[%emt 0:00:03]} d4 {[%emt 0:00:23]} 24. Qxd4 {[%emt 0:04:48]} Bxb3 {[%emt 0:00:07]} 25. axb3 {[%emt 0:00:04]} Qxb3 {[%emt 0:00:07]} 26. g3 {[%emt 0:00:39]} h6 {[%emt 0:01:42]} 27. Qc3 {[%emt 0:03:55]} Rb8 {[%emt 0:02:16]} 28. Rc2 {[%emt 0:00:53]} Qd5 {[%emt 0:01:08]} 29. Qc4 {[%emt 0:08:28]} Qf3 {[%emt 0:01:59]} 30. Rd2 {[%emt 0:00:47]} Re8 {[%emt 0:01:17]} 31. Qc1 {[%emt 0:00:27]} h5 {[%emt 0:01:32]} 32. h4 {[%emt 0:02:06]} g5 {[%emt 0:01:08]} 33. hxg5 {[%emt 0:03:46]} h4 {[%emt 0:00:38]} 34. Qd1 {[%emt 0:00:09]} Qf5 {[%emt 0:02:35]} 35. Re2 {[%emt 0:04:47]} Rb8 {[%emt 0:04:43]} 36. Qa4 {[%emt 0:05:17]} hxg3 {[%emt 0:00:45]} 37. Re8+ {[%emt 0:00:16]} Rxe8 {[%emt 0:00:20]} 38. Qxe8+ {[%emt 0:00:02]} Kg7 {[%emt 0:00:10]} 39. fxg3 {[%emt 0:01:01]} Qc5+ {[%emt 0:02:24]} 40. Kg2 {[%emt 0:00:00]} Qc2+ {[%emt 0:00:00]} 41. Kh3 {[%emt 0:04:42]} Qxb2 {[%emt 0:00:59]} 42. Qd8 {[%emt 0:02:23]} Qe5 {[%emt 0:01:56]} 43. d4 {[%emt 0:00:55]} Qf5+ {[%emt 0:00:18]} 44. Kg2 {[%emt 0:00:22]} Qe4+ {[%emt 0:13:38]} 45. Kf2 {[%emt 0:00:35]} Qc2+ {[%emt 0:02:11]} 46. Kf3 {[%emt 0:00:34]} Qd3+ {[%emt 0:02:39]} 47. Kf2 {[%emt 0:00:24]} Qf5+ {[%emt 0:02:32]} 48. Kg2 {[%emt 0:00:07]} Kg6 {[%emt 0:06:13]} 49. d5 {[%emt 0:00:52]} Qxg5 {[%emt 0:02:38]} 50. Qb6+ {[%emt 0:00:08]} f6 {[%emt 0:01:02]} 51. Qd4 {[%emt 0:10:06]} Qe5 {[%emt 0:03:40]} 52. Qd3+ {[%emt 0:06:21]} Qf5 {[%emt 0:00:34]} 53. Qd2 {[%emt 0:02:23]} Qe4+ {[%emt 0:10:09]} 54. Kh2 {[%emt 0:01:31]} Kf7 {[%emt 0:01:52]} 55. Qa2 {[%emt 0:03:39]} Ke7 {[%emt 0:04:57]} 56. Qa3+ {[%emt 0:00:11]} Kf7 {[%emt 0:01:22]} 57. Qa2 {[%emt 0:02:21]} Ke7 {[%emt 0:01:52]} 1/2-1/2

[Event "Mitropa Cup Open 2019"]
[Site "Radenci"]
[Date "2019.05.31"]
[Round "5.14"]
[White "Blohberger, Felix"]
[Black "Kovacevic, Blazimir"]
[Result "1/2-1/2"]
[ECO "C03"]
[WhiteElo "2475"]
[BlackElo "2456"]
[Annotator "ChessBase"]
[PlyCount "54"]
[EventDate "2019.05.27"]
[EventType "team-tourn"]
[EventCountry "SLO"]
[SourceTitle "playchess.com"]
[Source "ChessBase"]
[SourceQuality "1"]
[WhiteTeam "Austria"]
[BlackTeam "Croatia"]
[WhiteTeamCountry "AUT"]
[BlackTeamCountry "CRO"]
[TimeControl "40/5400+30:1800+30"]

1. e4 {[%emt 0:00:00]} e6 {[%emt 0:00:00]} 2. d4 {[%emt 0:00:00]} d5 {[%emt 0:00:00]} 3. Nd2 {[%emt 0:00:08]} Be7 {[%emt 0:00:00]} 4. Ngf3 {[%emt 0:01:00]} Nf6 {[%emt 0:00:14]} 5. e5 {[%emt 0:00:18]} Nfd7 {[%emt 0:00:06]} 6. Bd3 {[%emt 0:00:21]} c5 {[%emt 0:00:08]} 7. c3 {[%emt 0:00:14]} b6 {[%emt 0:00:11]} 8. Qe2 {[%emt 0:10:46]} a5 {[%emt 0:00:37]} 9. a4 {[%emt 0:01:49]} Ba6 {[%emt 0:00:36]} 10. Nb1 {[%emt 0:03:16]} Bxd3 {[%emt 0:06:22]} 11. Qxd3 {[%emt 0:00:15]} Nc6 {[%emt 0:00:27]} 12. Na3 {[%emt 0:02:16]} cxd4 {[%emt 0:11:04]} 13. cxd4 {[%emt 0:00:06]} Nb4 {[%emt 0:01:37]} 14. Qe2 {[%emt 0:02:30]} Nb8 {[%emt 0:09:52]} 15. O-O {[%emt 0:01:35]} O-O {[%emt 0:01:39]} 16. Bf4 {[%emt 0:02:56]} N8c6 {[%emt 0:01:47]} 17. Rfc1 {[%emt 0:02:40]} Qd7 {[%emt 0:07:44]} 18. Nb5 {[%emt 0:06:01]} Rfc8 {[%emt 0:03:30]} 19. Rc3 {[%emt 0:03:14]} Na7 {[%emt 0:06:16]} 20. Rac1 {[%emt 0:07:17]} Na2 {[%emt 0:02:13]} 21. Rxc8+ {[%emt 0:00:57]} Rxc8 {[%emt 0:00:04]} 22. Rxc8+ {[%emt 0:00:19]} Nxc8 {[%emt 0:00:04]} 23. Qc2 {[%emt 0:01:49]} Nb4 {[%emt 0:01:28]} 24. Qc3 {[%emt 0:01:45]} Nc6 {[%emt 0:08:21]} 25. Qc2 {[%emt 0:10:16]} Nb4 {[%emt 0:03:06]} 26. Qc3 {[%emt 0:01:54]} Nc6 {[%emt 0:00:12]} 27. Qc2 {[%emt 0:07:11]} Nb4 {[%emt 0:00:02]} 1/2-1/2

[Event "Mitropa Cup Open 2019"]
[Site "Radenci"]
[Date "2019.05.31"]
[Round "5.15"]
[White "Tica, Sven"]
[Black "Mesaros, Florian"]
[Result "0-1"]
[ECO "E00"]
[WhiteElo "2417"]
[BlackElo "2439"]
[Annotator "ChessBase"]
[PlyCount "78"]
[EventDate "2019.05.27"]
[EventType "team-tourn"]
[EventCountry "SLO"]
[SourceTitle "playchess.com"]
[Source "ChessBase"]
[SourceQuality "1"]
[WhiteTeam "Croatia"]
[BlackTeam "Austria"]
[WhiteTeamCountry "CRO"]
[BlackTeamCountry "AUT"]
[TimeControl "40/5400+30:1800+30"]

1. d4 {[%emt 0:00:00]} Nf6 {[%emt 0:00:00]} 2. c4 {[%emt 0:00:00]} e6 {[%emt 0:00:00]} 3. g3 {[%emt 0:00:00]} d5 {[%emt 0:00:00]} 4. Bg2 {[%emt 0:00:02]} Bb4+ {[%emt 0:00:11]} 5. Bd2 {[%emt 0:00:07]} Be7 {[%emt 0:00:09]} 6. Nf3 {[%emt 0:00:07]} Ne4 {[%emt 0:00:32]} 7. O-O {[%emt 0:03:04]} c6 {[%emt 0:00:59]} 8. Qc2 {[%emt 0:04:02]} Nd7 {[%emt 0:00:21]} 9. Bf4 {[%emt 0:03:07]} g5 {[%emt 0:10:39]} 10. cxd5 {[%emt 0:01:19]} exd5 {[%emt 0:02:21]} 11. Be3 {[%emt 0:00:59]} h5 {[%emt 0:03:14]} 12. Nfd2 {[%emt 0:06:40]} Nd6 {[%emt 0:02:02]} 13. f3 {[%emt 0:06:23]} h4 {[%emt 0:02:01]} 14. Bf2 {[%emt 0:01:38]} hxg3 {[%emt 0:02:30]} 15. hxg3 {[%emt 0:02:07]} Nb6 {[%emt 0:03:29]} 16. e4 {[%emt 0:03:04]} Be6 {[%emt 0:13:56]} 17. Nc3 {[%emt 0:02:43]} Qd7 {[%emt 0:06:59]} 18. Rfe1 {[%emt 0:04:33]} O-O-O {[%emt 0:06:20]} 19. a4 {[%emt 0:05:43]} Bh3 {[%emt 0:05:16]} 20. Bh1 {[%emt 0:04:54]} dxe4 {[%emt 0:05:01]} 21. fxe4 {[%emt 0:05:11]} Nbc4 {[%emt 0:07:49]} 22. Nxc4 {[%emt 0:02:44]} Nxc4 {[%emt 0:00:21]} 23. Bf3 {[%emt 0:18:38]} Bg4 {[%emt 0:02:24]} 24. Bg2 {[%emt 0:00:29]} Kb8 {[%emt 0:04:19]} 25. b3 {[%emt 0:01:34]} Nd6 {[%emt 0:00:42]} 26. e5 {[%emt 0:01:09]} Nf5 {[%emt 0:01:38]} 27. d5 {[%emt 0:00:38]} cxd5 {[%emt 0:01:23]} 28. Nxd5 {[%emt 0:00:38]} Bh3 {[%emt 0:04:29]} 29. Bf3 {[%emt 0:02:20]} Rc8 {[%emt 0:00:15]} 30. Qb2 {[%emt 0:05:15]} Bg4 {[%emt 0:02:16]} 31. Be4 {[%emt 0:01:52]} Qe6 {[%emt 0:02:00]} 32. Rac1 {[%emt 0:04:50]} Rcd8 {[%emt 0:03:37]} 33. Nxe7 {[%emt 0:01:04]} Nxe7 {[%emt 0:00:33]} 34. Bc5 {[%emt 0:00:15]} Bf5 {[%emt 0:02:57]} 35. Bd6+ {[%emt 0:00:40]} Ka8 {[%emt 0:00:59]} 36. Bxb7+ {[%emt 0:01:14]} Kxb7 {[%emt 0:00:02]} 37. Rc7+ {[%emt 0:00:10]} Ka8 {[%emt 0:01:08]} 38. Qf2 {[%emt 0:01:50]} Nc6 {[%emt 0:01:15]} 39. Qf3 {[%emt 0:00:48]} Rxd6 {[%emt 0:00:43]} 0-1

[Event "Mitropa Cup Open 2019"]
[Site "Radenci"]
[Date "2019.05.31"]
[Round "5.16"]
[White "Horvath, Dominik"]
[Black "Srbis, Jurica"]
[Result "1-0"]
[ECO "A19"]
[WhiteElo "2406"]
[BlackElo "2429"]
[Annotator "ChessBase"]
[PlyCount "141"]
[EventDate "2019.05.27"]
[EventType "team-tourn"]
[EventCountry "SLO"]
[SourceTitle "playchess.com"]
[Source "ChessBase"]
[SourceQuality "1"]
[WhiteTeam "Austria"]
[BlackTeam "Croatia"]
[WhiteTeamCountry "AUT"]
[BlackTeamCountry "CRO"]
[TimeControl "40/5400+30:1800+30"]

1. c4 {[%emt 0:00:00]} Nf6 {[%emt 0:00:00]} 2. Nc3 {[%emt 0:00:07]} e6 {[%emt 0:00:13]} 3. e4 {[%emt 0:00:44]} c5 {[%emt 0:07:06]} 4. e5 {[%emt 0:00:22]} Ng8 {[%emt 0:00:10]} 5. Nf3 {[%emt 0:00:05]} Nc6 {[%emt 0:01:58]} 6. d4 {[%emt 0:00:28]} cxd4 {[%emt 0:02:06]} 7. Nxd4 {[%emt 0:00:30]} Qc7 {[%emt 0:18:50]} 8. Ndb5 {[%emt 0:15:35]} Qxe5+ {[%emt 0:01:56]} 9. Qe2 {[%emt 0:00:06]} Qxe2+ {[%emt 0:00:43]} 10. Bxe2 {[%emt 0:00:32]} Kd8 {[%emt 0:00:40]} 11. Bf4 {[%emt 0:08:03]} a6 {[%emt 0:02:20]} 12. Nd6 {[%emt 0:00:35]} Bxd6 {[%emt 0:03:05]} 13. Bxd6 {[%emt 0:00:12]} Nf6 {[%emt 0:00:47]} 14. O-O-O {[%emt 0:07:30]} Ne8 {[%emt 0:00:43]} 15. Bf4 {[%emt 0:00:57]} d6 {[%emt 0:23:21]} 16. Bxd6 {[%emt 0:15:10]} Nxd6 {[%emt 0:00:06]} 17. Rxd6+ {[%emt 0:00:04]} Kc7 {[%emt 0:00:12]} 18. c5 {[%emt 0:00:11]} Rd8 {[%emt 0:00:30]} 19. Rhd1 {[%emt 0:02:52]} Bd7 {[%emt 0:00:10]} 20. Na4 {[%emt 0:02:52]} Be8 {[%emt 0:00:40]} 21. Nb6 {[%emt 0:00:25]} Rab8 {[%emt 0:00:13]} 22. Nc4 {[%emt 0:00:59]} Bd7 {[%emt 0:07:41]} 23. Bf3 {[%emt 0:06:14]} f6 {[%emt 0:04:00]} 24. Bg4 {[%emt 0:03:11]} f5 {[%emt 0:02:09]} 25. Bf3 {[%emt 0:00:04]} Be8 {[%emt 0:00:19]} 26. Nb6 {[%emt 0:09:47]} Rxd6 {[%emt 0:02:06]} 27. Rxd6 {[%emt 0:00:03]} Rd8 {[%emt 0:02:22]} 28. Rxe6 {[%emt 0:00:34]} Bf7 {[%emt 0:00:12]} 29. Re2 {[%emt 0:08:05]} Bxa2 {[%emt 0:00:26]} 30. b4 {[%emt 0:00:02]} Bg8 {[%emt 0:02:05]} 31. Kb2 {[%emt 0:00:09]} g5 {[%emt 0:01:44]} 32. g3 {[%emt 0:04:47]} Bf7 {[%emt 0:02:47]} 33. Kc3 {[%emt 0:00:58]} Re8 {[%emt 0:03:20]} 34. Rd2 {[%emt 0:02:10]} Rd8 {[%emt 0:01:21]} 35. Re2 {[%emt 0:00:33]} Re8 {[%emt 0:00:08]} 36. Rd2 {[%emt 0:01:25]} Rd8 {[%emt 0:00:05]} 37. Rxd8 {[%emt 0:00:13]} Nxd8 {[%emt 0:00:05]} 38. Bd5 {[%emt 0:00:34]} h6 {[%emt 0:07:40]} 39. Bxf7 {[%emt 0:02:45]} Nxf7 {[%emt 0:00:02]} 40. Kd4 {[%emt 0:00:00]} Kc6 {[%emt 0:00:00]} 41. Nc4 {[%emt 0:04:37]} Kb5 {[%emt 0:03:50]} 42. Kd5 {[%emt 0:03:02]} Kxb4 {[%emt 0:00:47]} 43. Nd6 {[%emt 0:00:05]} Nd8 {[%emt 0:05:51]} 44. f4 {[%emt 0:10:34]} g4 {[%emt 0:01:45]} 45. Nxb7 {[%emt 0:00:51]} Nxb7 {[%emt 0:00:01]} 46. c6 {[%emt 0:00:05]} Na5 {[%emt 0:00:06]} 47. c7 {[%emt 0:00:19]} Nc4 {[%emt 0:00:04]} 48. Kc6 {[%emt 0:00:15]} Na5+ {[%emt 0:00:14]} 49. Kb6 {[%emt 0:01:17]} Nc4+ {[%emt 0:00:08]} 50. Kxa6 {[%emt 0:07:19]} Nd6 {[%emt 0:01:52]} 51. Kb6 {[%emt 0:00:04]} Kc4 {[%emt 0:06:23]} 52. Kc6 {[%emt 0:00:04]} Nc8 {[%emt 0:00:51]} 53. Kd7 {[%emt 0:00:05]} Nb6+ {[%emt 0:00:07]} 54. Ke6 {[%emt 0:01:17]} Kc5 {[%emt 0:00:24]} 55. Kxf5 {[%emt 0:00:05]} Kd6 {[%emt 0:00:04]} 56. Kxg4 {[%emt 0:01:19]} Kxc7 {[%emt 0:00:04]} 57. Kh5 {[%emt 0:01:43]} Kd6 {[%emt 0:00:05]} 58. Kxh6 {[%emt 0:00:03]} Nd5 {[%emt 0:00:18]} 59. Kg6 {[%emt 0:00:39]} Ke7 {[%emt 0:01:59]} 60. h4 {[%emt 0:02:10]} Kf8 {[%emt 0:00:37]} 61. h5 {[%emt 0:02:52]} Kg8 {[%emt 0:01:00]} 62. f5 {[%emt 0:00:38]} Ne7+ {[%emt 0:04:08]} 63. Kg5 {[%emt 0:00:09]} Nd5 {[%emt 0:01:06]} 64. Kg6 {[%emt 0:02:01]} Ne7+ {[%emt 0:00:18]} 65. Kf6 {[%emt 0:01:40]} Nd5+ {[%emt 0:03:09]} 66. Ke6 {[%emt 0:00:05]} Nc7+ {[%emt 0:02:20]} 67. Kd6 {[%emt 0:00:09]} Ne8+ {[%emt 0:00:42]} 68. Ke7 {[%emt 0:00:07]} Nc7 {[%emt 0:00:07]} 69. f6 {[%emt 0:01:06]} Nd5+ {[%emt 0:00:10]} 70. Ke6 {[%emt 0:00:05]} Nc7+ {[%emt 0:00:09]} 71. Kd6 {[%emt 0:00:11]} 1-0